Workbook

Sheet Kalk_Verbrauch_SP_kurz_KB_0122s
A4: Midicoater Beschichtungsverfahren
A5: Berechnung der benötigten Harzmenge für SprayCoat in Liter und alternativ in kg
A6: in Abhängigkeit des Rohrdurchmessers, der Rohrlänge und der Beschichtungsstärke
A7: Rohrdurchmesser | B7: Länge des Rohres (l) | C7: Radius | D7: Mantelfläche | E7: Volumenberechnung für | F7: Umrechung Σ Volumen | G7: Umrechung Liter in kg
A8: mm | B8: mm | C8: mm | D8: Rohr in mm² | E8: Beschichtungshöhe h in mm³ | F8: in Liter, mit 1mm³ = | G8: mit spezifischer Dichte kg/l
F9: 1e-06 | G9: 1.4
F10: Verbrauchsmenge in l | G10: Verbrauchsmenge in kg
A12: 30 | B12: 1000 | C12: =0.5*A12 -> 15 | D12: =2*PI()*(C12*B12) -> 94247.77961 | E12: =D12*F32 -> 376991.1184 | F12: =E12*F9 -> 0.3769911184 | G12: =F12*G9 -> 0.5277875658
A13: 40 | B13: 1000 | C13: =0.5*A13 -> 20 | D13: =2*PI()*(C13*B13) -> 125663.7061 | E13: =D13*F32 -> 502654.8246 | F13: =E13*F9 -> 0.5026548246 | G13: =F13*G9 -> 0.7037167544
A14: 50 | B14: 1000 | C14: 25 | D14: =2*PI()*(C14*B14) -> 157079.6327 | E14: =D14*F32 -> 628318.5307 | F14: =E14*F9 -> 0.6283185307 | G14: =F14*G9 -> 0.879645943
A15: 60 | B15: 1000 | C15: 30 | D15: =2*PI()*(C15*B15) -> 188495.5592 | E15: =D15*F32 -> 753982.2369 | F15: =E15*F9 -> 0.7539822369 | G15: =F15*G9 -> 1.055575132
A16: 70 | B16: 1000 | C16: 35 | D16: 219911.4858 | E16: =D16*F32 -> 879645.943 | F16: =E16*F9 -> 0.879645943 | G16: =F16*G9 -> 1.23150432
A17: 80 | B17: 1000 | C17: 40 | D17: 251327.4123 | E17: =D17*F32 -> 1005309.649 | F17: =E17*F9 -> 1.005309649 | G17: =F17*G9 -> 1.407433509
A18: 90 | B18: 1000 | C18: 45 | D18: 282743.3388 | E18: =D18*F32 -> 1130973.355 | F18: =E18*F9 -> 1.130973355 | G18: =F18*G9 -> 1.583362697
A19: 100 | B19: 1000 | C19: 50 | D19: 314159.2654 | E19: =D19*F32 -> 1256637.061 | F19: =E19*F9 -> 1.256637061 | G19: =F19*G9 -> 1.759291886
A20: 110 | B20: 1000 | C20: 55 | D20: 345575.1919 | E20: =D20*F32 -> 1382300.768 | F20: =E20*F9 -> 1.382300768 | G20: =F20*G9 -> 1.935221075
A21: 125 | B21: 1000 | C21: 62.5 | D21: 392699.0817 | E21: =D21*F32 -> 1570796.327 | F21: =E21*F9 -> 1.570796327 | G21: =F21*G9 -> 2.199114858
A23: Legende:
A24: ZUR BERECHNUNG DER VERBRAUCHSMENGE, ÄNDERUNG VON WERTEN IN DEN GELB
A25: MARKIERTEN SPALTEN VORNEHMEN!
A27: Rechnung: Es wird von einer Beschichtungsstärke (Gesamtauftrag auf die Rohrinnenfläche ) von X mm
A28: ausgegangen. Diese ist variabel und kann ebenso wie der Rohrdurchmesser und die zu beschichtende
A29: Rorlänge verändert werden.
A30: Aus der Berechnung ergibt sich dann die Gesamtmenge des Harzes in Liter und kg.
A31: Veränderbare Variablen:
A32: Beschichtungsstärke: | E32: Beschichtungshöhe h in mm: | F32: 4
A33: Rohrdurchmesser, Rohrlänge, Beschichtungsstärke (-höhe)!
A34: Spezifische Dichte Harz in kg/l: | C34: 1.4 | E34: Kartuschengröße SprayCoat in kg: | F34: Kartuscheninhalt: | G34: 1,8kg
A35: 1,4 kg/l | C35: 1400
A36: Exemplarische Berechnung für jeweils immer 1m Rohrlänge
A37: Mantelfläche (die zu beschichtende Rohrinnenfläche): A= 2*Pi*r*L
B38: Pi=3,14; r= 1/2 DN in mm; h= 1000 mm
A39: Volumen: Grundfläche G= (A)*H, wobei H hier die max Höhe der Beschichtung ist.
